bitfinex/quotes_BTCUSD_20250604
["timestamp","ask_amount","ask_price","bid_price","bid_amount"]
[1749002113824,0.41785325,105530.0,105520.0,0.9584]
[1749002114034,0.43556685,105530.0,105520.0,0.9584]
[1749002114258,0.77656685,105530.0,105520.0,0.9584]
[1749002114481,0.75885325,105530.0,105520.0,0.9584]
[1749002114693,0.75585325,105530.0,105520.0,0.9584]
[1749002114933,0.77656674,105530.0,105520.0,0.9584]
[1749002115160,1.13546198,105530.0,105520.0,0.66752]
[1749002115369,0.77956674,105530.0,105520.0,0.9584]
[1749002115608,0.78842336,105530.0,105520.0,0.9584]
[1749002115823,0.78842291,105530.0,105520.0,0.9584]
[1749002116034,0.76185325,105530.0,105520.0,0.9584]
[1749002116249,0.77070979,105530.0,105520.0,0.9584]
[1749002116461,0.76185325,105530.0,105520.0,0.9584]
[1749002116676,0.78842281,105530.0,105520.0,0.9584]
[1749002116893,0.79727927,105530.0,105520.0,0.9584]
[1749002117108,0.78842277,105530.0,105520.0,0.9584]
[1749002117317,0.77070976,105530.0,105520.0,0.9584]
[1749002117551,0.77956626,105530.0,105520.0,0.9584]
[1749002117770,0.7795662,105530.0,105520.0,0.9584]
[1749002117983,0.77070976,105530.0,105520.0,0.9584]
[1749002118412,0.78842215,105530.0,105520.0,0.9584]
[1749002118630,0.77070976,105530.0,105520.0,0.66752]
[1749002118845,1.24585631,105530.0,105520.0,0.66752]
[1749002119060,1.25489688,105530.0,105520.0,0.9584]
[1749002119280,1.24604136,105530.0,105520.0,0.9584]
[1749002119505,1.25489674,105530.0,105520.0,0.9584]
[1749002119954,1.26375214,105530.0,105520.0,0.9584]
[1749002120175,1.24604136,105530.0,105520.0,0.9584]
[1749002120384,1.26375215,105530.0,105520.0,0.9584]
[1749002120594,1.24604136,105530.0,105520.0,0.9584]
[1749002121034,1.24603481,105530.0,105520.0,0.9584]
[1749002121172,1.2548906,105530.0,105520.0,0.9584]
[1749002121377,1.24603481,105530.0,105520.0,0.9584]
[1749002121607,1.25488807,105530.0,105520.0,0.9584]
[1749002121854,1.24603227,105530.0,105520.0,0.9584]
[1749002122184,1.27447627,105530.0,105520.0,0.9584]
[1749002122411,1.30105146,105530.0,105520.0,0.66752]
[1749002122623,1.27447627,105530.0,105520.0,0.9584]
[1749002123033,1.28333471,105530.0,105520.0,0.9584]
[1749002123235,1.27447627,105530.0,105520.0,0.9584]
[1749002123583,1.26544415,105530.0,105520.0,0.9584]
[1749002124145,1.29201951,105530.0,105520.0,0.9584]
[1749002124628,1.29866334,105530.0,105520.0,0.9584]
[1749002124804,1.35944741,105530.0,105520.0,0.9584]
[1749002125014,1.34173049,105530.0,105520.0,0.9584]
[1749002125203,1.35944741,105530.0,105520.0,0.9584]
[1749002125378,1.34173049,105530.0,105520.0,0.9584]
[1749002126009,1.35058894,105530.0,105520.0,0.9584]
[1749002126213,1.34173049,105530.0,105520.0,0.9584]
[1749002126442,1.29201951,105530.0,105520.0,0.9584]
[1749002126576,1.28316106,105530.0,105520.0,0.9584]
[1749002126779,1.26544415,105530.0,105520.0,0.9584]
[1749002127366,1.28316105,105530.0,105520.0,0.9584]
[1749002127628,1.26544415,105530.0,105520.0,0.9584]
[1749002127840,1.2831611,105530.0,105520.0,0.9584]
[1749002128044,1.29201957,105530.0,105520.0,0.9584]
[1749002128254,1.27430262,105530.0,105520.0,0.9584]
[1749002128464,1.26544415,105530.0,105520.0,0.9584]
[1749002129100,1.28316108,105530.0,105520.0,0.9584]
[1749002129307,1.27430261,105530.0,105520.0,0.9584]
[1749002129514,1.26544415,105530.0,105520.0,0.9584]
[1749002129719,1.28316108,105530.0,105520.0,0.9584]
[1749002129921,1.26544415,105530.0,105520.0,0.9584]
[1749002130346,1.28316108,105530.0,105520.0,0.9584]
[1749002130909,1.27430261,105530.0,105520.0,0.9584]
[1749002131321,1.28316108,105530.0,105520.0,0.9584]
[1749002131525,1.27430256,105530.0,105520.0,0.9584]
[1749002131736,1.29201893,105530.0,105520.0,0.9584]
[1749002131870,1.28316065,105530.0,105520.0,0.9584]
[1749002132080,1.27430235,105530.0,105520.0,0.9584]
[1749002132754,1.26544415,105530.0,105520.0,0.9584]
[1749002132897,1.28316055,105530.0,105520.0,0.9584]
[1749002133086,1.27430235,105530.0,105520.0,0.9584]
[1749002133523,1.26544415,105530.0,105520.0,0.9584]
[1749002133717,1.29201875,105530.0,105520.0,0.9584]
[1749002133952,1.26544415,105530.0,105520.0,0.9584]
[1749002134153,1.27430235,105530.0,105520.0,0.9584]
[1749002134357,1.26544415,105530.0,105520.0,0.9584]
[1749002134576,1.27430235,105530.0,105520.0,0.9584]
[1749002134734,1.26544415,105530.0,105520.0,0.9584]
[1749002135330,1.27447914,105530.0,105520.0,0.9584]
[1749002135531,1.29219577,105530.0,105520.0,0.9584]
[1749002135732,1.30105411,105530.0,105520.0,0.9584]
[1749002135958,1.27447914,105530.0,105520.0,0.9584]
[1749002136158,1.28333748,105530.0,105520.0,0.9584]
[1749002136360,1.29219583,105530.0,105520.0,0.9584]
[1749002136584,1.28333748,105530.0,105520.0,0.9584]
[1749002136799,1.27447914,105530.0,105520.0,0.9584]
[1749002136989,1.30105417,105530.0,105520.0,0.9584]
[1749002137345,1.29219592,105530.0,105520.0,0.9584]
[1749002137551,1.27447914,105530.0,105520.0,0.9584]
[1749002137771,1.29220148,105530.0,105520.0,0.68576]
[1749002138149,1.2744847,105530.0,105520.0,0.68576]
[1749002138565,1.2922014,105530.0,105520.0,0.68576]
[1749002138781,1.2744847,105530.0,105520.0,0.68576]
[1749002139353,1.28334304,105530.0,105520.0,0.68576]
[1749002139551,1.2744847,105530.0,105520.0,0.68576]
[1749002139751,1.30105972,105530.0,105520.0,0.68576]
[1749002140289,1.2744847,105530.0,105520.0,0.68576]
[1749002140493,1.29220138,105530.0,105520.0,0.68576]
[1749002140692,1.2744847,105530.0,105520.0,0.68576]
[1749002140901,1.28334304,105530.0,105520.0,0.68576]
[1749002141261,1.2744847,105530.0,105520.0,0.68576]
[1749002141672,1.27449826,105530.0,105520.0,0.68576]
[1749002141866,1.2833566,105530.0,105520.0,0.68576]
[1749002142072,1.27449826,105530.0,105520.0,0.68576]
[1749002142732,1.2833566,105530.0,105520.0,0.68572]
[1749002142922,1.2833566,105530.0,105520.0,0.08948]
[1749002142923,1.25899826,105530.0,105520.0,0.08948]
[1749002143276,0.0161,105510.0,105480.0,0.033]
[1749002143479,0.35589524,105490.0,105480.0,0.1288543]
[1749002143686,0.35589524,105490.0,105480.0,0.4196943]
[1749002144936,0.35589524,105490.0,105480.0,0.42017468]
[1749002145373,0.36540653,105490.0,105480.0,1.02789468]
[1749002145602,0.36540653,105490.0,105480.0,0.73705468]
[1749002146031,0.36540653,105490.0,105480.0,1.01339468]
[1749002146559,0.36540653,105490.0,105480.0,1.02919468]
[1749002146781,0.36540653,105490.0,105480.0,1.02719468]
[1749002147011,0.36540653,105490.0,105480.0,1.02919468]
[1749002149871,0.36540653,105490.0,105480.0,0.73835468]
[1749002150112,0.36540653,105490.0,105480.0,1.02919468]
[1749002151017,0.36540653,105490.0,105480.0,1.01335468]
[1749002151443,0.36540653,105490.0,105480.0,0.99685468]
[1749002153664,0.36540653,105490.0,105480.0,1.01275468]
[1749002153880,0.36540653,105490.0,105480.0,1.02885468]
[1749002155348,0.36540653,105490.0,105480.0,1.02820394]
[1749002155556,0.36540653,105490.0,105480.0,1.01210394]
[1749002159329,0.36514399,105490.0,105480.0,1.01210394]
[1749002160595,0.3556327,105490.0,105480.0,1.01210394]
[1749002160821,0.3556327,105490.0,105480.0,1.02750394]
[1749002167628,0.3556327,105490.0,105480.0,0.63132394]
[1749002167850,0.7112654,105490.0,105480.0,0.70540394]
[1749002168071,0.3556327,105490.0,105480.0,0.99616394]
[1749002168767,0.3556327,105490.0,105480.0,0.99416394]
[1749002169418,0.3576327,105490.0,105480.0,0.99416394]
[1749002169853,0.7454654,105490.0,105480.0,0.60820038]
[1749002170062,0.7454654,105490.0,105480.0,0.89892038]
[1749002170278,0.7454654,105490.0,105480.0,0.60820038]
[1749002170487,0.7454654,105490.0,105480.0,0.89892038]
[1749002171557,0.3576327,105490.0,105480.0,0.89892038]
[1749002179575,0.3883327,105490.0,105480.0,0.89892038]
[1749002189461,0.3576327,105490.0,105480.0,0.89892038]
[1749002205833,0.3883327,105490.0,105480.0,0.89892038]
[1749002208531,0.3576327,105490.0,105480.0,0.89892038]
[1749002210383,0.3576327,105490.0,105480.0,1.38190738]
[1749002210384,0.002,105490.0,105480.0,1.38190738]
[1749002210816,0.002,105490.0,105480.0,1.02627468]
[1749002215682,0.3576327,105490.0,105480.0,1.02627468]
[1749002216576,0.3576327,105490.0,105480.0,0.73555468]
[1749002216811,0.3576327,105490.0,105480.0,1.02603468]
[1749002217091,0.3576327,105490.0,105480.0,0.64607468]
[1749002217330,0.3576327,105490.0,105480.0,0.99437468]
[1749002219431,0.3576327,105490.0,105480.0,0.99433468]
[1749002227361,0.3576327,105490.0,105480.0,0.70389468]
[1749002227566,0.3576327,105490.0,105480.0,0.99429468]
[1749002227774,0.3888327,105490.0,105480.0,0.99429468]
[1749002228273,0.3888327,105490.0,105480.0,0.70389468]
[1749002228523,0.002,105490.0,105480.0,0.99429468]
[1749002228761,0.3576327,105490.0,105480.0,0.99429468]
[1749002229832,0.3576327,105490.0,105480.0,1.02699468]
[1749002231126,0.002,105490.0,105480.0,1.02699468]
[1749002238721,0.37334172,105500.0,105480.0,1.02699468]
[1749002238967,0.37334172,105500.0,105490.0,0.0958543]
[1749002239722,0.37334172,105500.0,105490.0,0.09822404]
[1749002240435,0.37434172,105500.0,105490.0,0.09822404]
[1749002240679,0.37434172,105500.0,105490.0,0.0958543]
[1749002241641,0.37534172,105500.0,105490.0,0.0958543]
[1749002252888,0.37534172,105500.0,105490.0,0.1850543]
[1749002255811,0.01970902,105500.0,105490.0,0.2168543]
[1749002256244,0.01970902,105500.0,105490.0,0.572487]
[1749002256458,0.01970902,105500.0,105490.0,1.312487]
[1749002256647,0.01970902,105500.0,105490.0,1.68266055]
[1749002256884,0.01970902,105500.0,105490.0,1.32702785]
[1749002257104,0.01870902,105500.0,105490.0,1.32702785]
[1749002257284,0.01870902,105500.0,105490.0,1.32802785]
[1749002257285,0.01770902,105500.0,105490.0,1.32802785]
[1749002257741,0.01770902,105500.0,105490.0,1.33002785]
[1749002257953,0.01770902,105500.0,105490.0,1.32902785]
[1749002258122,0.01770902,105500.0,105490.0,1.68866055]
[1749002258330,0.01770902,105500.0,105490.0,1.36331086]
[1749002258702,0.01770902,105500.0,105490.0,1.36131086]
[1749002258908,0.01770902,105500.0,105490.0,1.33102785]
[1749002259102,0.01770902,105500.0,105490.0,1.33402785]
[1749002259309,0.01775833,105500.0,105490.0,1.33366372]
[1749002260337,0.01770902,105500.0,105490.0,1.33361441]
[1749002261515,0.01770902,105500.0,105490.0,1.36140336]
[1749002262553,0.01770902,105500.0,105490.0,1.27220336]
[1749002263849,0.01770902,105500.0,105490.0,1.57220336]
[1749002264600,0.01771958,105510.0,105490.0,1.57220336]
[1749002264826,0.01771958,105510.0,105500.0,0.78979248]
[1749002265035,0.01771958,105510.0,105500.0,0.78742372]
[1749002265241,0.01771958,105510.0,105500.0,1.39478372]
[1749002265477,0.01771958,105510.0,105500.0,1.79478372]
[1749002266736,0.01771958,105510.0,105500.0,1.79778372]
[1749002266945,0.01771958,105510.0,105500.0,1.44251515]
[1749002267146,0.01771958,105510.0,105500.0,1.79778372]
[1749002267563,0.01771958,105510.0,105500.0,1.80078372]
[1749002268451,0.01771958,105510.0,105500.0,2.28728372]
[1749002270180,0.01771958,105510.0,105500.0,1.76912372]
[1749002272758,0.01771958,105510.0,105500.0,1.38976372]
[1749002272970,0.01771958,105510.0,105500.0,1.67984372]
[1749002275182,0.01771958,105510.0,105500.0,1.67980372]
[1749002275395,0.01771958,105510.0,105500.0,2.28696372]
[1749002278463,0.01771958,105510.0,105500.0,2.01428372]
[1749002278672,0.01771958,105510.0,105500.0,2.35428372]
[1749002280493,0.01771958,105510.0,105500.0,2.01980372]
[1749002280947,0.01771958,105510.0,105500.0,2.00380372]
[1749002281386,0.01771958,105510.0,105500.0,2.01930372]
[1749002282466,0.01771958,105510.0,105500.0,1.98820372]
[1749002282899,0.01771958,105510.0,105500.0,1.98775461]
[1749002283783,0.01771958,105510.0,105500.0,1.3283543]
[1749002284009,0.01771958,105510.0,105500.0,1.2183543]
[1749002284010,0.04931958,105510.0,105500.0,1.2183543]
[1749002284436,0.04931958,105510.0,105500.0,1.6183543]
[1749002284871,0.04931958,105510.0,105500.0,1.61808164]
[1749002285321,0.04931958,105510.0,105500.0,2.22524164]
[1749002286264,0.04931958,105510.0,105500.0,1.73874164]
[1749002293237,0.04931958,105510.0,105500.0,0.70874164]
[1749002293445,0.04931958,105510.0,105500.0,0.99870164]
[1749002293729,0.40458815,105510.0,105500.0,0.61966164]
[1749002293934,0.40458815,105510.0,105500.0,0.99870164]
[1749002294375,0.04931958,105510.0,105500.0,0.99870164]
[1749002294582,0.40458815,105510.0,105500.0,0.99570164]
[1749002294787,0.40458815,105510.0,105500.0,0.99670164]
[1749002295210,0.40458815,105510.0,105500.0,0.99270164]
[1749002295422,0.40458815,105510.0,105500.0,0.99470164]
[1749002295627,0.04931958,105510.0,105500.0,0.99470164]
[1749002306656,0.40458815,105510.0,105500.0,0.99470164]
[1749002307092,0.04931958,105510.0,105500.0,0.99470164]
[1749002318761,0.04931958,105510.0,105500.0,0.70474164]
[1749002318986,0.04931958,105510.0,105500.0,0.99466164]
[1749002319239,0.40458815,105510.0,105500.0,0.70474164]
[1749002319437,0.40458815,105510.0,105500.0,0.99466164]
[1749002319677,0.40458815,105510.0,105500.0,0.99462164]
[1749002321016,0.40458815,105510.0,105500.0,0.99362164]
[1749002321231,0.40458815,105510.0,105500.0,0.99262164]
[1749002321455,0.40558815,105510.0,105500.0,0.99262164]
[1749002326404,0.40558815,105510.0,105500.0,0.70270164]
[1749002326606,0.40558815,105510.0,105500.0,0.99262164]
[1749002327041,0.05031958,105510.0,105500.0,0.99262164]
[1749002327873,0.01871958,105510.0,105500.0,0.99262164]
[1749002328314,0.01871958,105510.0,105500.0,1.00912164]
[1749002329372,0.01771958,105510.0,105500.0,1.01012164]
[1749002329577,0.01771958,105510.0,105500.0,1.01112164]
[1749002331649,0.01771958,105510.0,105500.0,0.99462164]
[1749002334144,0.01771958,105510.0,105500.0,1.00972164]
[1749002334571,0.01771958,105510.0,105500.0,0.99462164]
[1749002334791,0.01771958,105510.0,105500.0,1.02492164]
[1749002335225,0.01771958,105510.0,105500.0,1.00972164]
[1749002337129,0.01771958,105510.0,105500.0,0.99462164]
[1749002341948,0.01771958,105510.0,105500.0,1.38099021]
[1749002342832,0.01771958,105510.0,105500.0,1.78099021]
[1749002348115,0.01771958,105510.0,105500.0,2.26749021]
[1749002350911,0.01771958,105510.0,105500.0,2.28203106]
[1749002351122,0.01771958,105510.0,105500.0,2.62203106]
[1749002351358,0.01771958,105510.0,105500.0,2.28203106]
[1749002355631,0.00454807,105510.0,105500.0,4.40965208]
[1749002355846,0.00454807,105510.0,105500.0,3.71942897]
[1749002356069,0.05807768,105550.0,105530.0,0.38546857]
[1749002356282,0.05807768,105550.0,105540.0,0.4769426]
[1749002356496,0.05807768,105550.0,105540.0,0.4745743]
[1749002357626,0.05821432,105550.0,105540.0,0.4745743]
[1749002358251,0.05821432,105550.0,105540.0,0.4755743]
[1749002358465,0.05821432,105550.0,105540.0,0.4765743]
[1749002360829,0.02671432,105550.0,105540.0,0.4765743]
[1749002365388,0.02671432,105550.0,105540.0,0.9945743]
[1749002366245,0.02671432,105550.0,105540.0,0.9944543]
[1749002366455,0.05901432,105550.0,105540.0,0.9944543]
[1749002366891,0.05901432,105550.0,105540.0,0.6158543]
[1749002367099,0.05901432,105550.0,105540.0,0.9943743]
[1749002371284,0.02671432,105550.0,105540.0,0.9943743]
[1749002371496,0.02671432,105550.0,105540.0,1.34964287]
[1749002371707,0.05761432,105550.0,105540.0,0.9943343]
[1749002374416,0.05761432,105550.0,105540.0,0.7047343]
[1749002374555,0.05761432,105550.0,105540.0,0.9943343]
[1749002376024,0.05761432,105550.0,105540.0,0.6158543]
[1749002376220,0.05761432,105550.0,105540.0,0.9943343]
[1749002376797,0.03990318,105550.0,105540.0,0.9943343]
[1749002383517,0.39517175,105550.0,105540.0,0.7047343]
[1749002383720,0.39517175,105550.0,105540.0,0.9942943]
[1749002385996,0.39517175,105550.0,105540.0,0.6158543]
[1749002386202,0.39517175,105550.0,105540.0,0.9942943]
[1749002388367,0.39517175,105550.0,105540.0,0.6158543]
[1749002388591,0.39517175,105550.0,105540.0,0.9942143]
[1749002389223,0.03990318,105550.0,105540.0,0.9942143]
[1749002390875,0.39517175,105550.0,105540.0,0.9942143]
[1749002396956,0.39517175,105550.0,105540.0,0.6158543]
[1749002397165,0.39517175,105550.0,105540.0,0.9942143]
[1749002397585,0.03990318,105550.0,105540.0,0.9942143]
[1749002397807,0.39517175,105550.0,105540.0,0.9942143]
[1749002398026,0.39517175,105550.0,105540.0,0.6158543]
[1749002398233,0.39517175,105550.0,105540.0,0.9942143]
[1749002398689,0.03990318,105550.0,105540.0,0.9932143]
[1749002399120,0.04190318,105550.0,105540.0,0.9922143]
[1749002399335,0.04390318,105550.0,105540.0,0.9922143]
[1749002400649,0.01300318,105550.0,105540.0,0.9922143]
[1749002400881,0.01300318,105550.0,105540.0,1.37878287]
[1749002401386,0.01300318,105550.0,105540.0,1.0235143]
[1749002401604,0.01100318,105550.0,105540.0,1.0235143]
[1749002401825,0.00900318,105550.0,105540.0,1.0235143]
[1749002406288,0.00900318,105550.0,105540.0,0.6138543]
[1749002406497,0.00900318,105550.0,105540.0,0.9921743]
[1749002406498,0.39617175,105550.0,105540.0,0.9921743]
[1749002406941,0.39617175,105550.0,105540.0,0.7026543]
[1749002407156,0.39617175,105550.0,105540.0,0.9921743]
[1749002407605,0.04090318,105550.0,105540.0,0.9921743]
[1749002408274,0.00900318,105550.0,105540.0,0.9921743]
[1749002410908,0.00900318,105550.0,105540.0,0.7026543]
[1749002411122,0.04040318,105550.0,105540.0,0.9921743]
[1749002411768,0.39567175,105550.0,105540.0,0.6138543]
[1749002411983,0.39567175,105550.0,105540.0,0.9921743]
[1749002413248,0.39767175,105550.0,105540.0,0.9921743]
[1749002413673,0.04240318,105550.0,105540.0,0.9921743]
[1749002413905,0.04440318,105550.0,105540.0,0.9921743]
[1749002417394,0.04440318,105550.0,105540.0,0.9522361]
[1749002418760,0.01300318,105550.0,105540.0,0.9522361]
[1749002419606,0.01100318,105550.0,105540.0,0.9673361]
[1749002420228,0.00900318,105550.0,105540.0,0.9673361]
[1749002421072,0.00900318,105550.0,105540.0,0.9522361]
[1749002422998,0.04050318,105550.0,105540.0,0.9522361]
[1749002423642,0.04050318,105550.0,105540.0,0.9521561]
[1749002423857,0.04050318,105550.0,105540.0,0.6626761]
[1749002423858,0.39577175,105550.0,105540.0,0.6626761]
[1749002424113,0.39577175,105550.0,105540.0,0.9521561]
[1749002424599,0.04050318,105550.0,105540.0,0.9521561]
[1749002424844,0.00900318,105550.0,105540.0,0.9521561]
[1749002426452,0.00900318,105550.0,105540.0,0.9673561]
[1749002426691,0.00900318,105550.0,105540.0,0.9829561]
[1749002426913,0.00900318,105550.0,105540.0,1.33822467]
[1749002427332,0.00900318,105550.0,105540.0,0.9829561]
[1749002434368,0.00900318,105550.0,105540.0,0.9673561]
[1749002434864,0.00900318,105550.0,105540.0,0.9521561]
[1749002443479,0.00900318,105550.0,105540.0,0.9848561]
[1749002443708,0.00900318,105550.0,105540.0,1.34012467]
[1749002445291,0.00900318,105550.0,105540.0,1.74012467]
[1749002447916,0.00900318,105550.0,105540.0,2.09466552]
[1749002448136,0.00900318,105550.0,105540.0,2.12488733]
[1749002448782,0.00900318,105550.0,105540.0,2.61138733]
[1749002449904,0.00900318,105550.0,105540.0,2.33974733]
[1749002451994,0.00900318,105550.0,105540.0,2.3618959]
[1749002452214,0.00900318,105550.0,105540.0,2.00662733]
[1749002455391,0.00900318,105550.0,105540.0,2.61322733]
[1749002458009,0.00900318,105550.0,105540.0,1.36187876]
[1749002458227,0.00900318,105550.0,105540.0,1.65422552]
[1749002458440,0.00900318,105550.0,105540.0,1.94358552]
[1749002461524,0.00900318,105550.0,105540.0,1.95928552]
[1749002461738,0.00900318,105550.0,105540.0,1.97588552]
[1749002461977,0.00900318,105550.0,105540.0,1.66992552]
[1749002462212,0.00900318,105550.0,105540.0,1.58831695]
[1749002462467,0.00900318,105550.0,105540.0,1.2844161]
[1749002462698,0.04110318,105550.0,105540.0,1.5737761]
[1749002464003,0.04110318,105550.0,105540.0,1.1737761]
[1749002464442,0.04110318,105550.0,105540.0,1.5737761]
[1749002464869,0.04110318,105550.0,105540.0,1.0872761]
[1749002465346,0.04110318,105550.0,105540.0,1.6938761]
[1749002468996,0.00900318,105550.0,105540.0,1.6938761]
[1749002469221,0.00900318,105550.0,105540.0,2.04914467]
[1749002469450,0.00900318,105550.0,105540.0,2.53564467]
[1749002470431,0.00900318,105550.0,105540.0,2.13564467]
[1749002470881,0.00900318,105550.0,105540.0,2.53564467]
[1749002471354,0.02470318,105550.0,105540.0,2.53564467]
[1749002471570,0.03980318,105550.0,105540.0,2.53564467]
[1749002472434,0.00900318,105550.0,105540.0,2.53564467]
[1749002474406,0.00900318,105550.0,105540.0,2.1803761]
[1749002474646,0.00900318,105550.0,105540.0,2.53564467]
[1749002475275,0.00900318,105550.0,105540.0,2.04914467]
[1749002475483,0.00900318,105550.0,105540.0,2.03914467]
[1749002476144,0.00900318,105550.0,105540.0,2.06948552]
[1749002476353,0.00900318,105550.0,105540.0,2.08508552]
[1749002476771,0.00900318,105550.0,105540.0,2.11530733]
[1749002476986,0.00900318,105550.0,105540.0,2.08508552]
[1749002477192,0.00900318,105550.0,105540.0,2.11530733]
[1749002477415,0.00900318,105550.0,105540.0,2.4705759]
[1749002477622,0.00900318,105550.0,105540.0,2.1980159]
[1749002478478,0.00900318,105550.0,105540.0,2.6845159]
[1749002479144,0.00900318,105550.0,105540.0,2.4391959]
[1749002479436,0.00900318,105550.0,105540.0,2.3504759]
[1749002484283,0.00900318,105550.0,105540.0,2.3788949]
[1749002485269,0.00900318,105550.0,105540.0,2.8967749]
[1749002485518,0.00900318,105550.0,105540.0,2.9854949]
[1749002486527,0.00900318,105550.0,105540.0,2.4235749]
[1749002486777,0.00900318,105550.0,105540.0,2.35762633]
[1749002487032,0.00900318,105550.0,105540.0,1.34759776]
[1749002487285,0.03960318,105550.0,105540.0,1.29541595]
[1749002487514,0.03960318,105550.0,105540.0,0.5344161]
[1749002487737,0.03960318,105550.0,105540.0,0.8237361]
[1749002488007,0.03960318,105550.0,105540.0,1.1637361]
[1749002488738,0.03960318,105550.0,105540.0,0.3879161]
[1749002488983,0.03960318,105550.0,105540.0,0.6772361]
[1749002492143,0.03960318,105550.0,105540.0,0.3879161]
[1749002492379,0.03960318,105550.0,105540.0,0.0479161]
[1749002492619,0.03960318,105550.0,105540.0,0.3372761]
[1749002495307,0.03960318,105550.0,105540.0,0.9438761]
[1749002497765,0.03960318,105550.0,105540.0,1.29914467]
[1749002497977,0.00900318,105550.0,105540.0,1.29914467]
[1749002498407,0.02490318,105550.0,105540.0,1.29914467]
[1749002498623,0.04060318,105550.0,105540.0,1.29914467]
[1749002499554,0.00900318,105550.0,105540.0,1.29914467]
[1749002499773,0.00900318,105550.0,105540.0,1.31434467]
[1749002500025,0.00900318,105550.0,105540.0,1.07132552]
[1749002500478,0.00900318,105550.0,105540.0,1.47132552]
[1749002502105,0.00900318,105550.0,105540.0,1.22600552]
[1749002502781,0.00900318,105550.0,105540.0,1.62378552]
[1749002505364,0.00900318,105550.0,105540.0,2.23042552]
[1749002507449,0.00900318,105550.0,105540.0,1.95782552]
[1749002507681,0.00900318,105550.0,105540.0,1.71250552]
[1749002507934,0.00900318,105550.0,105540.0,1.22600552]
[1749002511453,0.00900318,105550.0,105540.0,1.13728552]
[1749002514031,0.00900318,105550.0,105540.0,1.62378552]
[1749002515333,0.00900318,105550.0,105540.0,1.94102552]
[1749002515552,0.00900318,105550.0,105540.0,2.20018552]
[1749002516882,0.00900318,105550.0,105540.0,2.21628552]
[1749002517314,0.00900318,105550.0,105540.0,1.94368552]
[1749002520538,0.00900318,105550.0,105540.0,1.92758552]
[1749002520969,0.00900318,105550.0,105540.0,1.94908552]
[1749002521186,0.00900318,105550.0,105540.0,1.96558552]
[1749002523825,0.00820731,105550.0,105540.0,1.96558552]
[1749002524520,0.00820731,105550.0,105540.0,1.99400652]
[1749002525146,0.00820731,105550.0,105540.0,2.02422833]
[1749002525363,0.00820731,105550.0,105540.0,2.63078833]
[1749002526039,0.00820731,105550.0,105540.0,4.9949399]
[1749002526255,0.00820731,105550.0,105540.0,3.1129339]
[1749002526487,0.00820731,105550.0,105540.0,2.7134969]
[1749002528014,0.00820731,105550.0,105540.0,2.4681769]
[1749002528480,0.00820731,105550.0,105540.0,2.3794969]
[1749002529354,0.00820731,105550.0,105540.0,2.9101329]
[1749002530472,0.00820731,105550.0,105540.0,2.87991109]
[1749002530700,0.00820731,105550.0,105540.0,2.91012424]
[1749002532075,0.00820731,105550.0,105540.0,3.44962585]
[1749002532293,0.00820731,105550.0,105540.0,3.72888769]
[1749002532507,0.00820731,105550.0,105540.0,3.77621626]
[1749002532723,0.00820731,105550.0,105540.0,3.78569098]
[1749002532944,0.00820731,105550.0,105540.0,3.77621626]
[1749002533170,0.00820731,105550.0,105540.0,3.77521626]
[1749002533398,0.04187007,105580.0,105570.0,0.70980942]
[1749002533623,0.04191816,105580.0,105570.0,1.09498372]
[1749002533839,0.00891816,105580.0,105570.0,1.09498372]
[1749002534055,0.04191816,105580.0,105570.0,1.49498372]
[1749002534966,0.00891816,105580.0,105570.0,1.49498372]
[1749002535403,0.00891816,105580.0,105570.0,2.10150372]
[1749002535619,0.00891816,105580.0,105570.0,1.85769013]
[1749002535839,0.00991816,105580.0,105570.0,1.85769013]
[1749002536061,0.00991816,105580.0,105570.0,1.92769013]
[1749002536492,0.01191816,105580.0,105570.0,1.92769013]
[1749002537568,0.01191816,105580.0,105570.0,1.68241013]
[1749002537778,0.01191816,105580.0,105570.0,1.59373013]
[1749002540493,0.01191816,105580.0,105570.0,2.08023013]
[1749002543868,0.01191816,105580.0,105570.0,1.72496156]
[1749002544095,0.01191816,105580.0,105570.0,2.08023013]
[1749002545284,0.01191816,105580.0,105570.0,2.68675013]
[1749002548630,0.01191816,105580.0,105570.0,2.41423013]
[1749002550227,0.01191816,105580.0,105570.0,2.12491013]
[1749002550393,0.01191816,105580.0,105570.0,2.41431013]
[1749002552095,0.04281816,105580.0,105570.0,2.08031013]
[1749002553805,0.04281816,105580.0,105570.0,1.74031013]
[1749002554021,0.04281816,105580.0,105570.0,1.38504156]
[1749002554229,0.04281816,105580.0,105570.0,1.74031013]
[1749002555227,0.04281816,105580.0,105570.0,2.34679013]
[1749002555438,0.04281816,105580.0,105570.0,1.99184156]
[1749002555843,0.04281816,105580.0,105570.0,2.07471013]
[1749002557780,0.04281816,105580.0,105570.0,1.47420156]
[1749002557981,0.04281816,105580.0,105570.0,1.82947013]
[1749002558923,0.04281816,105580.0,105570.0,1.82963013]
[1749002559803,0.04281816,105580.0,105570.0,1.80088372]
[1749002560864,0.04281816,105580.0,105570.0,1.71212372]
[1749002562162,0.04281816,105580.0,105570.0,1.74231273]
[1749002562385,0.04281816,105580.0,105570.0,2.08231273]
[1749002562647,0.01191816,105580.0,105570.0,2.08231273]
[1749002563725,0.01191816,105580.0,105570.0,2.05212372]
[1749002564395,0.01191816,105580.0,105570.0,2.08235753]
[1749002565247,0.01191816,105580.0,105570.0,2.68883753]
[1749002567374,0.01191816,105580.0,105570.0,2.68834793]
[1749002567594,0.01191816,105580.0,105570.0,2.41586793]
[1749002569379,0.01191816,105580.0,105570.0,2.08186793]
[1749002575231,0.01191816,105580.0,105570.0,2.35434793]
[1749002575530,0.01191816,105580.0,105570.0,2.68858793]
[1749002578166,0.01191816,105580.0,105570.0,2.41610793]
[1749002580692,0.01191816,105580.0,105570.0,1.88090793]
[1749002580917,0.04241816,105580.0,105570.0,2.17046793]
[1749002582726,0.04241816,105580.0,105570.0,2.08146793]
[1749002585339,0.04241816,105580.0,105570.0,2.68818793]
[1749002586007,0.04241816,105580.0,105570.0,2.34818793]
[1749002586242,0.04241816,105580.0,105570.0,1.94818793]
[1749002588359,0.04241816,105580.0,105570.0,1.43046793]
[1749002588597,0.04241816,105580.0,105570.0,1.34146793]
[1749002590703,0.04241816,105580.0,105570.0,1.34118793]
[1749002591598,0.04241816,105580.0,105570.0,1.74118793]
[1749002592059,0.02691816,105580.0,105570.0,1.74118793]
[1749002592535,0.01191816,105580.0,105570.0,1.74118793]
[1749002592998,0.01191816,105580.0,105570.0,2.4359669]
[1749002593232,0.01191816,105580.0,105570.0,2.4525669]
[1749002593476,0.01191816,105580.0,105570.0,2.7675669]
[1749002593703,0.01191816,105580.0,105570.0,2.73733309]
[1749002593945,0.00991816,105580.0,105570.0,2.73733309]
[1749002594667,0.00991816,105580.0,105570.0,2.73833309]
[1749002594894,0.00891816,105580.0,105570.0,2.73833309]
[1749002595352,0.00891816,105580.0,105570.0,3.34505309]
[1749002596056,0.00891816,105580.0,105570.0,3.34405309]
[1749002596290,0.00891816,105580.0,105570.0,3.34805309]
[1749002597941,0.00891816,105580.0,105570.0,3.07557309]